bitfinex-derivatives/quotes_SOLF0:USTF0_20220110
["timestamp","ask_amount","ask_price","bid_price","bid_amount"]
[1641857543676,6.011,135.98,135.91,4.0]
[1641857543877,4.0,136.02,135.95,4.0]
[1641857544077,4.0,136.02,135.95,11.37]
[1641857544476,4.0,136.02,135.95,7.37]
[1641857544677,4.0,136.01,135.95,7.37]
[1641857544876,4.0,136.0,135.95,7.37]
[1641857545082,4.0,136.0,135.93,27.66479]
[1641857545279,4.0,135.99,135.93,27.66479]
[1641857545479,4.0,135.99,135.93,30.42634537]
[1641857545680,4.0,136.0,135.93,30.42634537]
[1641857545879,5.663,136.01,135.94,4.0]
[1641857546281,5.663,136.01,135.93,30.42634537]
[1641857546480,5.663,136.01,135.94,4.0]
[1641857547179,4.0,136.0,135.93,30.42634537]
[1641857547380,4.0,135.99,135.93,30.42634537]
[1641857547780,5.88353987,135.98,135.93,30.42634537]
[1641857547980,41.55932987,135.98,135.93,30.42634537]
[1641857548380,45.55932987,135.98,135.93,30.42634537]
[1641857548583,4.0,135.95,135.93,2.76155537]
[1641857548782,13.205,135.95,135.86,4.0]
[1641857548981,5.88506908,135.94,135.86,4.0]
[1641857549181,5.88506908,135.94,135.85,4.0]
[1641857549582,5.88506908,135.94,135.86,4.0]
[1641857549785,5.88506908,135.94,135.89,4.0]
[1641857549984,35.67579,135.98,135.89,11.698]
[1641857550783,35.67579,135.98,135.89,7.698]
[1641857551186,9.88420261,135.96,135.89,7.698]
[1641857551385,9.88420261,135.96,135.88,27.66479]
[1641857551783,5.88420261,135.96,135.88,27.66479]
[1641857553184,4.1680892,135.94,135.88,27.66479]
[1641857554186,4.1680892,135.94,135.88,31.66479]
[1641857554585,4.1680892,135.94,135.89,4.0]
[1641857554786,4.1680892,135.94,135.89,13.375]
[1641857555185,4.1680892,135.94,135.89,9.375]
[1641857555385,4.1680892,135.94,135.91,4.0]
[1641857555785,4.1680892,135.94,135.9,4.0]
[1641857555986,4.1680892,135.94,135.89,13.375]
[1641857556186,4.1680892,135.94,135.89,9.375]
[1641857556986,5.88379032,135.97,135.89,9.375]
[1641857557186,4.16760776,135.95,135.89,9.375]
[1641857557486,4.16760776,135.95,135.89,13.375]
[1641857558386,4.16760776,135.95,135.89,9.375]
[1641857559787,4.16760776,135.95,135.9,4.0]
[1641857559987,4.16760776,135.95,135.93,27.66479]
[1641857560187,4.16760776,135.95,135.93,36.99879]
[1641857560689,10.62091194,135.98,135.93,36.99879]
[1641857561088,4.16735243,135.94,135.93,36.99879]
[1641857564191,4.16735243,135.94,135.93,9.334]
[1641857564492,8.429,135.98,135.88,31.66479]
[1641857564691,8.429,135.98,135.94,2.18172727]
[1641857565093,5.88365256,135.97,135.94,2.18172727]
[1641857565995,33.54844256,135.97,135.94,2.18172727]
[1641857566892,10.62091194,135.96,135.94,2.18172727]
[1641857567693,41.54335801,135.99,135.94,2.18172727]
[1641857568094,27.66479,135.98,135.94,2.18172727]
[1641857568293,33.63579,135.98,135.94,2.18172727]
[1641857568493,33.63579,135.98,135.89,2.18167294]
[1641857569594,10.62571589,135.97,135.89,2.18167294]
[1641857570193,15.58547115,135.95,135.91,4.0]
[1641857570393,15.58547115,135.95,135.91,7.017]
[1641857570993,15.58547115,135.97,135.91,7.017]
[1641857571897,15.58547115,135.96,135.91,7.017]
[1641857572099,15.58547115,135.96,135.91,34.68179]
[1641857573899,15.58547115,135.95,135.91,34.68179]
[1641857574899,15.58547115,135.96,135.91,34.68179]
[1641857576203,15.58547115,135.96,135.91,62.34658]
[1641857576402,15.58547115,135.96,135.92,2.18207499]
[1641857578706,19.58547115,135.96,135.92,2.18207499]
[1641857578907,4.0,135.93,135.86,15.58547115]
[1641857579108,17.89244573,135.93,135.86,15.58547115]
[1641857579605,4.0,135.92,135.86,15.58547115]
[1641857579812,5.88615425,135.92,135.86,15.58547115]
[1641857580211,15.58547115,135.91,135.85,27.66479]
[1641857580810,15.58547115,135.91,135.85,31.66479]
[1641857581210,18.27349513,135.91,135.85,27.66479]
[1641857581810,18.27349513,135.91,135.89,4.0]
[1641857582011,15.58547115,135.92,135.89,10.372]
[1641857582212,15.58547115,135.92,135.91,27.66479]
[1641857582611,2.68802398,135.94,135.91,27.66479]
[1641857586514,15.58547115,135.96,135.91,27.66479]
[1641857586715,15.58547115,135.97,135.91,27.66479]
[1641857587714,21.46921471,135.97,135.88,15.58547115]
[1641857588014,27.97521471,135.97,135.88,15.58547115]
[1641857588214,27.97521471,135.97,135.88,43.25026115]
[1641857588415,18.27431743,135.96,135.88,45.76140672]
[1641857588916,18.27431743,135.96,135.88,49.76140672]
[1641857589315,18.27431743,135.96,135.89,2.51114557]
[1641857591719,9.88453573,135.95,135.89,2.51114557]
[1641857591919,18.06053573,135.95,135.89,2.51114557]
[1641857592119,45.72532573,135.95,135.89,2.51114557]
[1641857592319,41.72532573,135.95,135.88,43.25026115]
[1641857592520,18.27431743,135.94,135.88,27.66479]
[1641857593323,2.68884628,135.94,135.89,2.51078979]
[1641857593522,2.68884628,135.94,135.89,10.66278979]
[1641857593922,2.68884628,135.94,135.91,4.0]
[1641857594122,15.58547115,135.97,135.92,27.66479]
[1641857594825,18.27431743,135.98,135.92,27.66479]
[1641857595125,18.27431743,135.98,135.92,35.07479]
[1641857596524,15.58547115,135.97,135.92,35.07479]
[1641857597325,15.58547115,135.96,135.92,35.07479]
[1641857598931,18.27431743,135.98,135.92,35.07479]
[1641857599133,18.27431743,135.98,135.92,27.66479]
[1641857599630,15.58547115,135.97,135.93,1.72334687]
[1641857599931,24.01647115,135.97,135.93,1.72334687]
[1641857600432,18.27431743,135.96,135.93,1.72334687]
[1641857600830,22.44177797,135.96,135.93,1.72334687]
[1641857602031,2.68884628,135.95,135.93,1.72334687]
[1641857602631,10.75584628,135.95,135.93,1.72334687]
[1641857603233,9.88537931,135.94,135.87,15.58547115]
[1641857603432,4.0,135.92,135.86,15.58547115]
[1641857603631,15.81217239,135.92,135.86,15.58547115]
[1641857604332,27.66479,135.91,135.86,15.58547115]
[1641857604532,15.58547115,135.9,135.82,34.17604561]
[1641857604737,15.58547115,135.9,135.82,30.17604561]
[1641857604933,15.58547115,135.9,135.86,4.0]
[1641857605134,15.58547115,135.9,135.86,11.803]
[1641857605536,18.27431743,135.94,135.87,2.51125561]
[1641857605934,18.27431743,135.94,135.87,6.51125561]
[1641857606134,18.27431743,135.94,135.87,2.51125561]
[1641857606435,2.68884628,135.94,135.88,27.66479]
[1641857608138,2.68884628,135.94,135.9,4.0]
[1641857608337,4.16899223,135.9,135.89,4.0]
[1641857608539,1e-08,135.9,135.89,4.0]
[1641857608738,2.68884628,135.94,135.89,4.0]
[1641857608940,2.68884628,135.94,135.89,13.097]
[1641857609138,2.68884628,135.94,135.9,4.0]
[1641857609439,15.58547115,135.96,135.9,6.50691379]
[1641857609638,41.54335801,135.99,135.9,6.50691379]
[1641857609639,15.58547115,135.99,135.9,6.50691379]
[1641857609839,15.58547115,135.99,135.9,2.50691379]
[1641857610243,15.58547115,135.99,135.93,27.66479]
[1641857610441,15.58547115,135.98,135.93,27.66479]
[1641857612543,13.30847895,136.0,135.93,27.66479]
[1641857612544,15.58547115,135.99,135.93,27.66479]
[1641857613544,15.58547115,135.98,135.93,27.66479]
[1641857614444,19.75258897,135.98,135.93,27.66479]
[1641857614646,4.16711782,135.98,135.93,27.66479]
[1641857615446,2.68884628,135.97,135.93,27.66479]
[1641857616846,2.68884628,135.97,135.94,1.36157733]
[1641857617045,2.68884628,135.97,135.94,8.16157733]
[1641857618447,6.85613221,135.97,135.94,8.16157733]
[1641857618750,4.16728593,135.97,135.94,8.16157733]
[1641857619348,2.68884628,135.96,135.94,8.16157733]
[1641857620448,2.68884628,135.96,135.94,6.8]
[1641857620648,2.68884628,135.96,135.95,2.23683685]
[1641857622050,6.85586866,135.96,135.95,2.23683685]
[1641857622251,6.85586866,135.96,135.88,43.25026115]
[1641857622953,4.16702238,135.96,135.88,43.25026115]
[1641857623554,4.16702238,135.96,135.89,2.50683729]
[1641857624957,8.16702238,135.96,135.95,2.23700096]
[1641857625159,4.16702238,135.96,135.95,0.30484559]
[1641857625560,10.85157484,135.96,135.95,0.30484559]
[1641857625759,6.68455246,135.96,135.95,0.30484559]
[1641857625962,10.85183783,135.96,135.95,0.30484559]
[1641857626359,22.43730898,135.96,135.95,0.30484559]
[1641857627260,6.85183783,135.96,135.95,0.30484559]
[1641857627961,6.85183783,135.96,135.88,27.66479]
[1641857628361,6.85183783,135.96,135.9,2.21499042]
[1641857628561,2.68455246,135.95,135.9,6.21499042]
[1641857630266,4.16764573,135.96,135.91,2.50691966]
[1641857630466,4.16764573,135.96,135.91,9.68791966]
[1641857630666,4.16764573,135.96,135.91,37.35270966]
[1641857631068,4.16764573,135.96,135.91,34.84579]
[1641857633069,4.16727985,135.94,135.91,34.84579]
[1641857635574,4.16727985,135.94,135.92,1.36173163]
[1641857636474,15.58547115,135.97,135.92,1.36173163]
[1641857636876,4.16741902,135.93,135.92,1.36173163]
[1641857637276,1.902e-05,135.93,135.92,1.36173163]
[1641857637978,1.902e-05,135.93,135.92,3.87285934]
[1641857639082,1.902e-05,135.93,135.92,2.51112771]
[1641857639382,1.902e-05,135.93,135.92,3.87310425]
[1641857639583,1.902e-05,135.93,135.92,7.87310425]
[1641857640083,1.902e-05,135.93,135.92,3.87310425]
[1641857640483,2.68899534,135.97,135.92,7.87310425]
[1641857640685,2.68899534,135.97,135.96,27.66479]
[1641857640985,15.59382709,136.0,135.96,61.01879]
[1641857641183,15.59382709,136.0,135.98,4.0]
[1641857641385,41.54335801,136.03,135.97,1.838]
[1641857641583,41.54335801,136.03,135.99,4.0]
[1641857641883,41.54335801,136.03,135.99,6.688]
[1641857642484,23.30612383,136.08,135.99,6.688]
[1641857642485,10.84,136.08,135.99,6.688]
[1641857642687,10.84,136.08,136.01,31.66479]
[1641857643086,10.84,136.08,136.01,27.66479]
[1641857644090,14.84,136.08,136.01,27.66479]
[1641857644289,4.0,136.07,136.01,27.66479]
[1641857644890,9.88010191,136.06,136.01,27.66479]
[1641857645089,9.88010191,136.06,135.96,27.66479]
[1641857645289,4.0,136.04,135.96,27.66479]
[1641857645690,9.8814426,136.03,135.96,27.66479]
[1641857645891,5.8814426,136.03,135.96,27.66479]
[1641857646092,4.0,135.98,135.92,2.23624461]
[1641857646291,4.0,135.95,135.91,14.77960262]
[1641857646492,4.0,135.95,135.91,2.62e-06]
[1641857646493,12.973,135.95,135.91,2.62e-06]
[1641857646693,27.66479,135.94,135.91,2.62e-06]
[1641857646892,27.66479,135.94,135.87,62.01457308]
[1641857647095,27.66479,135.94,135.86,27.66479]
[1641857648794,33.54925712,135.96,135.91,4.0]
[1641857648997,134.0464,136.01,135.91,4.0]
[1641857649195,134.0464,136.01,135.91,13.066]
[1641857649397,130.0464,136.01,135.91,13.066]
[1641857649796,4.0,135.98,135.91,9.066]
[1641857649999,11.82,135.98,135.91,9.066]
[1641857650197,11.82,135.98,135.9,4.0]
[1641857650397,7.82,135.98,135.9,4.0]
[1641857650799,7.82,135.98,135.93,27.66479]
[1641857651400,11.82,135.98,135.91,27.66479]
[1641857651698,11.82,135.98,135.85,1.838]
[1641857651899,11.82,135.98,135.83,5.839]
[1641857652302,11.82,135.98,135.84,95.0]
[1641857652502,11.82,135.98,135.85,4.0]
[1641857652698,11.82,135.98,135.9,27.66479]
[1641857653299,7.82,135.98,135.9,27.66479]
[1641857654300,4.0,135.99,135.9,27.66479]
[1641857656303,37.54748421,136.0,135.9,27.66479]
[1641857656504,37.54748421,136.0,135.9,34.48379]
[1641857657105,4.1666767,135.97,135.9,34.48379]
[1641857657708,4.0,135.95,135.9,27.66479]
[1641857657907,4.0,135.94,135.88,27.66479]
[1641857658207,9.042,135.94,135.88,27.66479]
[1641857659409,4.1666767,135.97,135.88,27.66479]
[1641857659610,4.1666767,135.97,135.88,36.08079]
[1641857660409,4.1666767,135.97,135.88,40.08079]
[1641857660610,4.1666767,135.97,135.88,36.08079]
[1641857660810,11.05953139,135.99,135.91,27.66479]
[1641857661213,4.16636088,135.96,135.91,33.77079]
[1641857662717,4.16636088,135.96,135.91,61.43558]
[1641857665118,11.05953139,135.99,135.91,61.43558]
[1641857665320,4.16633818,135.95,135.91,61.43558]
[1641857666422,4.16633818,135.95,135.92,1.76637834]
[1641857668625,10.0509674,135.95,135.92,1.76637834]
[1641857669023,5.88462922,135.95,135.92,1.76637834]
[1641857669222,7.05953139,135.99,135.92,1.76637834]
[1641857669625,71.89877885,136.01,135.92,1.76637834]
[1641857669926,4.16662504,135.94,135.92,1.76637834]
[1641857670126,8.46825715,136.04,135.93,4.0]
[1641857670326,41.39337631,136.05,135.97,4.0]
[1641857670528,41.39337631,136.05,135.97,6.274]
[1641857670927,4.0,136.05,135.99,27.66479]
[1641857671127,4.0,136.04,135.93,71.1596]
[1641857671327,4.0,136.03,135.93,67.1596]
[1641857671730,5.88171317,136.02,135.92,11.87344524]
[1641857671929,17.26871317,136.02,135.92,1.76664815]
[1641857672533,5.8827391,136.0,135.92,1.76664815]
[1641857672731,9.8827391,136.0,135.92,1.76664815]
[1641857672935,33.5475291,136.0,135.93,27.66479]
[1641857673330,4.0,135.98,135.93,27.66479]
[1641857673530,4.0,135.98,135.92,1.76664815]
[1641857673531,4.0,135.94,135.92,1.76664815]
[1641857673730,7.006,135.94,135.92,1.76664815]
[1641857673931,7.006,135.94,135.87,15.51004402]
[1641857674733,7.006,135.94,135.85,25.64225001]
[1641857674931,7.006,135.94,135.89,27.66479]
[1641857678738,83.07438312,135.98,135.89,27.66479]
[1641857678939,15.51004402,135.98,135.92,27.66479]
[1641857679237,15.51004402,135.98,135.92,36.95079]
[1641857679238,4.16708602,135.93,135.92,36.95079]
[1641857679437,15.51004402,135.98,135.92,36.95079]
[1641857679637,43.17483402,136.0,135.92,36.95079]
[1641857680240,4.0,135.99,135.92,36.95079]
[1641857680439,43.17483402,136.0,135.92,27.66479]
[1641857680440,37.77379,136.0,135.92,27.66479]
[1641857680640,4.0,135.99,135.92,27.66479]
[1641857680841,5.88296777,135.99,135.92,27.66479]
[1641857681245,15.51004402,135.98,135.92,27.66479]
[1641857682444,2.68303093,135.99,135.92,27.66479]
[1641857682843,2.68303093,135.99,135.92,55.32958]
[1641857683446,6.68303093,135.99,135.92,55.32958]
[1641857684147,2.68303093,135.98,135.92,55.32958]
[1641857684347,13.24540185,135.98,135.92,55.32958]
[1641857684948,10.56237092,135.98,135.92,55.32958]
[1641857685549,10.56237092,135.98,135.93,2.50624608]
[1641857686150,4.16637092,135.98,135.93,2.50624608]
[1641857688155,4.16643639,135.97,135.93,2.50624608]
[1641857688555,4.16643639,135.97,135.92,55.32958]
[1641857690157,4.16643639,135.97,135.94,2.68690726]
[1641857691361,5.88419226,135.96,135.89,15.51004402]
[1641857691959,2.68437613,135.95,135.89,2.50715545]
[1641857692958,2.68437613,135.95,135.92,27.66479]
[1641857693160,4.16634078,135.97,135.92,27.66479]
[1641857693562,4.16634078,135.97,135.93,4.0]
[1641857693862,4.16634078,135.97,135.93,9.29715545]
[1641857694060,15.51004402,136.0,135.93,15.18251668]
[1641857694260,15.51004402,136.0,135.95,3.14536009]
[1641857694860,15.51004402,136.03,135.95,3.14536009]
[1641857695058,15.51004402,136.03,135.98,27.66479]
[1641857696561,15.51004402,136.04,135.98,27.66479]
[1641857697965,15.51004402,136.03,135.98,27.66479]
[1641857698966,15.51004402,136.03,136.01,27.66479]
[1641857699166,15.51004402,136.03,136.01,35.46779]
[1641857699668,15.51004402,136.06,136.01,35.46779]
[1641857700669,19.51004402,136.06,136.01,7.803]
[1641857700871,4.0,136.06,135.98,27.66479]
[1641857701071,4.0,136.04,135.98,27.66479]
[1641857701272,4.0,136.04,135.96,46.65685129]
[1641857701572,4.0,136.03,135.96,46.65685129]
[1641857701771,29.94828981,136.03,135.96,31.14680727]
[1641857701971,35.8295275,136.03,135.96,31.14680727]
[1641857702176,4.0,136.02,135.96,31.14680727]
[1641857702374,31.8295275,136.03,135.96,27.66479]
[1641857702572,15.51004402,136.01,135.96,27.66479]
[1641857702772,15.51004402,136.01,135.99,2.57981014]
[1641857703272,2.68324579,136.02,135.99,2.57981014]
[1641857703872,6.68324579,136.02,135.99,2.57981014]
[1641857704675,2.68324579,136.01,135.96,27.66479]
[1641857705676,18.19328981,136.01,135.96,27.66479]
[1641857706376,2.68324579,136.01,135.96,27.66479]
[1641857706979,18.19328981,136.02,135.96,27.66479]
[1641857707181,18.19328981,136.02,136.0,3.45504943]
[1641857707380,18.19328981,136.02,135.96,27.66479]
[1641857708682,15.51004402,136.01,135.96,27.66479]
[1641857710084,18.19328981,136.02,135.96,27.66479]
[1641857712285,18.19328981,136.02,135.97,2.73000047]
[1641857712486,4.0,136.01,135.97,2.73000047]
[1641857712689,4.16576078,136.0,135.97,2.73000047]
[1641857713088,19.6758048,136.0,135.97,2.73000047]
[1641857713994,18.19328981,135.99,135.97,2.73000047]
[1641857714193,24.07609742,135.99,135.97,2.73000047]
[1641857714493,28.07609742,135.99,135.92,27.66479]
[1641857714694,28.07609742,135.99,135.9,27.66479]
[1641857714894,22.19328981,135.98,135.9,27.66479]
[1641857715094,57.71607981,135.98,135.9,27.66479]
[1641857715295,53.71607981,135.98,135.9,27.66479]
[1641857715495,26.05128981,135.98,135.9,27.66479]
[1641857715695,18.19328981,135.97,135.9,27.66479]
[1641857716094,41.39337631,136.0,135.96,4.0]
[1641857716394,45.55973618,136.0,135.96,9.123]
[1641857716596,4.16635987,136.0,135.96,13.123]
[1641857717097,4.16635987,136.0,135.99,27.66479]
[1641857717396,4.16635987,136.0,135.99,35.54279]
[1641857719601,4.16635987,136.0,135.99,7.878]
[1641857719801,4.16635987,136.0,135.97,27.66479]
[1641857720002,6.225,136.01,135.97,27.66479]
[1641857721304,4.16465987,136.0,135.97,27.66479]
[1641857723906,11.52065987,136.0,135.97,27.66479]
[1641857724107,15.52065987,136.0,135.94,27.66479]
[1641857724507,11.52065987,136.0,135.94,27.66479]
[1641857724706,7.356,136.0,135.94,27.66479]
[1641857724907,4.16486987,136.0,135.94,31.66479]
[1641857725310,4.16486987,136.0,135.99,27.66479]
[1641857726109,4.16486987,136.0,135.94,29.50279]
[1641857726309,4.16486987,136.0,135.94,27.66479]
[1641857727311,4.16486987,136.0,135.94,55.32958]
[1641857727511,4.16486987,136.0,135.94,59.32958]
[1641857728112,4.16486987,136.0,135.95,4.0]
[1641857728312,4.16486987,136.0,135.95,5.844]
[1641857728513,4.16486987,136.0,135.95,9.844]
[1641857728711,21.71809283,136.04,135.95,9.844]
[1641857728912,4.16457095,136.0,135.95,5.844]
[1641857730013,4.16457095,136.0,135.94,55.32958]
[1641857730812,4.16457095,136.0,135.95,1.61449918]
[1641857732713,4.16506091,135.99,135.95,1.61449918]
[1641857733413,4.16506091,135.99,135.97,27.66479]
[1641857733614,4.16506091,135.99,135.97,35.53379]
[1641857735616,4.16506091,135.99,135.97,27.66479]
[1641857737617,5.88025982,136.05,135.97,27.66479]
[1641857737818,4.16511031,135.98,135.97,27.66479]
[1641857739625,4.16511031,135.98,135.94,27.66479]
[1641857741524,4.0,136.04,135.94,27.66479]
[1641857741724,4.16492697,135.98,135.94,27.66479]
[1641857744229,4.16492697,135.98,135.94,37.8118993]
[1641857745332,10.62428278,136.04,135.94,37.8118993]
[1641857746531,15.59427549,136.03,135.95,15.59427549]
[1641857746732,30.40450563,136.03,135.95,15.59427549]
[1641857746932,4.0,136.0,135.95,15.59427549]
[1641857747134,7.222,136.0,135.95,15.59427549]
[1641857747834,11.222,136.0,135.95,15.59427549]
[1641857748034,22.81627549,136.0,135.94,27.66479]
[1641857748936,7.222,136.0,135.94,27.66479]
[1641857750038,4.0,135.96,135.93,25.75806837]
[1641857750237,7.349,135.96,135.9,41.39337631]
[1641857750436,7.349,135.96,135.92,15.59647145]
[1641857750638,17.23309224,135.96,135.92,15.59647145]
[1641857751240,17.23309224,135.96,135.89,41.39337631]
[1641857751640,17.23309224,135.96,135.84,132.39337631]
[1641857751838,58.4561,135.95,135.88,27.66479]
[1641857752039,62.4561,135.95,135.88,27.66479]
[1641857752238,68.34086331,135.95,135.88,27.66479]
[1641857753039,64.34086331,135.95,135.88,27.66479]
[1641857753742,58.4561,135.95,135.88,27.66479]
[1641857754141,27.66479,135.97,135.88,27.66479]
[1641857754342,58.6223,135.96,135.88,27.66479]
[1641857754944,4.0,135.95,135.88,27.66479]
[1641857755147,4.0,135.91,135.88,27.66479]
[1641857755348,8.476,135.91,135.88,27.66479]
[1641857755646,8.476,135.91,135.9,1.61619521]
[1641857755847,46.02722556,135.91,135.83,69.05816631]
[1641857756047,46.02722556,135.91,135.83,27.66479]
[1641857756048,4.0,135.9,135.83,27.66479]
[1641857756749,4.0,135.89,135.83,27.66479]
[1641857756948,4.0,135.89,135.84,2.50358742]
[1641857757950,4.0,135.89,135.83,27.66479]
[1641857758951,62.295,135.9,135.81,27.66479]
[1641857759152,9.88764563,135.88,135.81,27.66479]
[1641857759352,15.93164563,135.88,135.81,27.66479]
[1641857759954,39.59643563,135.88,135.81,27.66479]
[1641857760958,33.70879,135.88,135.81,27.66479]
[1641857761158,6.044,135.88,135.81,27.66479]
[1641857761557,10.21262448,135.88,135.81,27.66479]
[1641857761958,37.87741448,135.88,135.81,27.66479]
[1641857762158,41.87741448,135.88,135.79,91.0]
[1641857762359,4.0,135.86,135.79,91.0]
[1641857762559,4.0,135.87,135.79,91.0]
[1641857763159,43.7651499,135.88,135.79,91.0]
[1641857763560,47.7651499,135.88,135.79,91.0]
[1641857763759,43.7651499,135.88,135.79,91.0]
[1641857764259,47.7651499,135.88,135.79,91.0]
[1641857765361,8.16853239,135.87,135.79,91.0]
[1641857765562,10.0567355,135.87,135.79,91.0]
[1641857766162,27.66479,135.85,135.79,91.0]
[1641857766966,4.0,135.83,135.75,4.0]
[1641857767163,4.0,135.83,135.72,41.39337631]
[1641857767364,4.0,135.8,135.72,41.39337631]
[1641857767564,4.0,135.79,135.72,41.39337631]
[1641857768064,27.66479,135.78,135.7,27.66479]
[1641857768465,34.50279,135.8,135.7,27.66479]
[1641857769067,38.50279,135.8,135.7,27.66479]
[1641857769466,4.0,135.79,135.7,27.66479]
[1641857770167,4.0,135.78,135.7,27.66479]
[1641857771672,68.05879209,135.8,135.7,27.66479]
[1641857771673,4.0,135.79,135.7,27.66479]
[1641857773173,8.17150128,135.79,135.7,27.66479]
[1641857774273,8.17150128,135.79,135.71,1.28104347]
[1641857776173,5.89209845,135.78,135.71,1.28104347]
[1641857776373,14.97709845,135.78,135.71,1.28104347]
[1641857776776,20.86938533,135.78,135.71,1.28104347]
[1641857776974,25.04083858,135.78,135.71,1.28104347]
[1641857777675,25.04083858,135.78,135.7,27.66479]
[1641857777876,86.00693858,135.78,135.7,27.66479]
[1641857778075,86.00693858,135.78,135.72,1.28088159]
[1641857778375,86.00693858,135.78,135.72,9.80388159]
[1641857778875,5.89278395,135.76,135.72,9.80388159]
[1641857779975,10.0635517,135.78,135.72,9.80388159]
[1641857780176,10.0635517,135.78,135.76,27.66479]
[1641857780177,4.17145325,135.78,135.76,27.66479]
[1641857780475,4.17145325,135.78,135.76,34.57079]
[1641857780679,4.17124008,135.77,135.76,34.57079]
[1641857780976,8.48151627,135.83,135.76,34.57079]
[1641857782176,12.48151627,135.83,135.76,34.57079]
[1641857782375,4.0,135.82,135.76,27.66479]
[1641857782578,11.066,135.82,135.76,27.66479]
[1641857783076,7.066,135.82,135.76,27.66479]
[1641857783879,8.48151627,135.83,135.76,27.66479]
[1641857784878,60.6813,135.84,135.76,27.66479]
[1641857784879,97.6027577,135.86,135.76,27.66479]
[1641857785079,7.0661677,135.86,135.77,4.0]
[1641857785279,37.83830177,135.89,135.78,4.0]
[1641857786078,4.17016798,135.82,135.78,10.165]
[1641857786277,4.17016798,135.82,135.81,27.66479]
[1641857786478,4.17016798,135.82,135.81,36.88879]
[1641857787578,4.17016798,135.82,135.81,9.224]
[1641857787779,4.17016798,135.82,135.77,3.03156064]
[1641857788480,4.17016798,135.82,135.78,2.49893024]
[1641857789484,4.0,135.85,135.78,2.49893024]
[1641857789882,9.88874325,135.86,135.79,2.94737276]
[1641857790084,5.88942215,135.84,135.79,2.94737276]
[1641857792186,4.0,135.8,135.74,15.46748557]
[1641857792385,4.0,135.79,135.74,15.46748557]
[1641857792590,12.35525146,135.8,135.74,15.46748557]
[1641857793184,12.35525146,135.8,135.72,27.66479]
[1641857793584,16.35525146,135.8,135.72,27.66479]
[1641857793986,16.35525146,135.8,135.73,2.50206633]
[1641857795189,6.464,135.8,135.73,9.86406633]
[1641857795387,7.06825133,135.82,135.73,9.86406633]
[1641857795687,4.17033308,135.84,135.73,25.3315519]
[1641857795886,4.17033308,135.84,135.73,29.3315519]
[1641857796087,4.17033308,135.84,135.73,25.3315519]
[1641857796288,4.17033308,135.84,135.73,29.3315519]
[1641857796487,4.17033308,135.84,135.77,27.66479]
[1641857796687,4.17033308,135.84,135.77,36.97879]
[1641857797388,71.1704189,135.85,135.78,2.50206633]
[1641857797588,4.17119605,135.79,135.78,2.50206633]
[1641857799690,4.17119605,135.79,135.75,15.46748557]
[1641857799892,4.17119605,135.79,135.74,15.46748557]
[1641857801293,4.0,135.84,135.74,15.46748557]
[1641857801493,4.0,135.84,135.74,22.21548557]
[1641857802595,4.0,135.84,135.75,17.97213794]
[1641857802794,4.0,135.84,135.76,27.66479]
[1641857803295,4.0,135.83,135.76,27.66479]
[1641857803496,4.0,135.82,135.77,2.50465237]
[1641857803694,5.89140297,135.8,135.77,2.50465237]
[1641857804499,5.8915891,135.79,135.73,2.50465237]
[1641857805701,9.8915891,135.79,135.73,2.50465237]
[1641857806304,5.8915891,135.79,135.73,2.50465237]
[1641857807206,33.5563791,135.79,135.71,17.97213794]
[1641857807707,33.5563791,135.79,135.72,15.46748557]
[1641857807904,33.5563791,135.79,135.72,21.30048557]
[1641857808706,33.5563791,135.79,135.73,2.50465237]
[1641857809005,33.5563791,135.79,135.74,2.41426995]
[1641857809006,4.17168105,135.78,135.74,2.41426995]
[1641857809708,4.17168105,135.78,135.75,2.50465237]
[1641857809908,4.17168105,135.78,135.75,10.44965237]
[1641857811111,4.17168105,135.78,135.75,7.945]
[1641857812714,39.44814084,135.79,135.75,7.945]
[1641857813115,27.66479,135.82,135.75,10.35904375]
[1641857813515,5.89072761,135.81,135.75,10.35904375]
[1641857813917,5.89072761,135.81,135.76,2.50691269]
[1641857814516,27.66479,135.82,135.76,2.50691269]
[1641857815718,33.55523907,135.82,135.76,2.50691269]